bitfinex-derivatives/quotes_SOLF0:USTF0_20250321
["timestamp","ask_amount","ask_price","bid_price","bid_amount"]
[1742563290484,20.94204225,126.13,126.12,0.05919428]
[1742563290673,13.00994225,126.13,126.07,274.60994225]
[1742563290872,0.05146755,126.14,126.07,274.60994225]
[1742563290873,43.54994225,126.12,126.07,274.60994225]
[1742563291069,7.9336,126.11,126.08,7.9349]
[1742563291276,30.54,126.12,126.08,20.94484225]
[1742563291877,0.05716094,126.11,126.09,0.05911712]
[1742563292976,7.99096094,126.11,126.09,0.05911712]
[1742563293182,0.05716094,126.11,126.09,0.05911712]
[1742563294573,0.05716094,126.11,126.09,13.06905937]
[1742563294776,0.05716094,126.11,126.1,13.00994225]
[1742563295183,0.05716094,126.11,126.1,7.934]
[1742563296585,0.05716094,126.11,126.09,0.05911712]
[1742563296888,7.99056094,126.11,126.09,0.05911712]
[1742563297689,0.05716094,126.11,126.09,7.99361712]
[1742563299186,0.05716094,126.11,126.09,0.05911712]
[1742563299781,7.934,126.1,126.09,0.05911712]
[1742563301380,38.474,126.1,126.09,0.05911712]
[1742563301586,7.936,126.07,126.02,316.88050773]
[1742563301785,7.936,126.07,126.02,286.34050773]
[1742563302087,50.92810773,126.1,126.02,316.88050773]
[1742563302285,50.92810773,126.1,126.04,7.9375]
[1742563302485,50.92810773,126.1,126.02,316.88050773]
[1742563302881,0.05568312,126.07,126.05,0.05002852]
[1742563303481,7.99188312,126.07,126.05,0.05002852]
[1742563304293,0.05568312,126.07,126.05,7.98702852]
[1742563304491,0.05568312,126.07,126.05,0.05002852]
[1742563304999,30.59568312,126.07,126.05,0.05002852]
[1742563305494,7.9365,126.06,126.05,0.05002852]
[1742563307989,7.9365,126.06,126.05,2.852e-05]
[1742563307990,36.26460773,126.06,126.05,2.852e-05]
[1742563308296,30.50000773,126.06,125.96,64.20199299]
[1742563308497,22.56000773,126.06,125.99,7.9406]
[1742563308698,7.9391,126.02,125.99,7.9406]
[1742563308902,38.4791,126.02,125.99,7.9406]
[1742563309093,7.9381,126.04,125.98,20.38810773]
[1742563309395,0.0562196,126.02,126.0,20.38810773]
[1742563309589,30.56,126.06,126.01,24.53280773]
[1742563310302,38.4968,126.06,126.03,7.9379]
[1742563310596,38.4968,126.06,126.01,24.53280773]
[1742563310789,0.05428349,126.06,126.04,7.9374]
[1742563311685,0.05428349,126.06,126.03,7.9888158]
[1742563311896,0.05428349,126.06,126.03,0.0508158]
[1742563312095,7.9377,126.04,126.03,0.0508158]
[1742563312690,38.4773,126.05,126.03,0.0508158]
[1742563313992,7.9377,126.04,126.03,0.0508158]
[1742563314900,38.4774,126.05,126.03,0.0508158]
[1742563315397,7.9377,126.04,126.03,0.0508158]
[1742563317594,7.9377,126.04,126.03,1.58e-05]
[1742563331908,28.32580773,126.04,126.03,1.58e-05]
[1742563334702,7.9377,126.04,126.03,1.58e-05]
[1742563336006,38.4777,126.04,126.03,1.58e-05]
[1742563336705,7.9377,126.04,126.03,1.58e-05]
[1742563344320,0.05428349,126.06,126.03,1.58e-05]
[1742563344917,7.99108349,126.06,126.04,7.9377]
[1742563345525,0.05428349,126.06,126.05,7.9371]
[1742563345722,43.57715796,126.1,126.05,13.05715796]
[1742563345927,13.05715796,126.11,126.07,13.05715796]
[1742563346220,30.52,126.1,126.07,13.05715796]
[1742563346414,7.9349,126.09,126.07,20.99295796]
[1742563346921,7.99075042,126.09,126.07,13.11231048]
[1742563347116,7.9352,126.08,126.07,0.05515252]
[1742563353228,7.99075042,126.09,126.07,0.05515252]
[1742563353731,7.99075042,126.09,126.07,7.99085252]
[1742563354031,7.99075042,126.09,126.07,17.99085252]
[1742563355531,30.5,126.12,126.07,10.05515252]
[1742563355922,30.5,126.12,126.07,14.29275252]
[1742563356119,30.5,126.12,126.09,7.9341]
[1742563356319,30.5,126.12,126.07,14.29275252]
[1742563356728,7.99174601,126.11,126.08,7.9347]
[1742563358329,7.99174601,126.11,126.09,7.9346]
[1742563358626,7.99174601,126.11,126.07,14.29275252]
[1742563359525,7.99174601,126.11,126.08,7.9348]
[1742563359830,7.99174601,126.11,126.07,14.29275252]
[1742563360327,7.99174601,126.11,126.08,7.9351]
[1742563362232,7.9341,126.1,126.08,7.9351]
[1742563363231,7.9341,126.1,126.07,14.29275252]
[1742563363435,0.05804601,126.11,126.07,10.05515252]
[1742563363831,7.9352,126.08,126.07,10.05515252]
[1742563366040,7.9349,126.09,126.07,10.05515252]
[1742563366239,0.05804601,126.11,126.07,10.05515252]
[1742563367041,0.05804601,126.11,126.07,17.99035252]
[1742563367240,7.9347,126.09,126.07,17.99035252]
[1742563367537,0.05804601,126.11,126.07,10.05515252]
[1742563367736,7.9352,126.08,126.07,10.05515252]
[1742563369043,7.9349,126.09,126.07,17.99085252]
[1742563369237,7.9349,126.09,126.07,31.04017102]
[1742563369930,13.10736451,126.11,126.07,10.05515252]
[1742563371340,7.9352,126.08,126.07,10.05515252]
[1742563371535,20.9845185,126.08,126.07,10.05515252]
[1742563371735,20.9845185,126.08,126.07,5.252e-05]
[1742563373041,7.9359,126.07,126.06,5.158e-05]
[1742563373241,20.9852185,126.07,126.06,5.158e-05]
[1742563373635,7.9394,126.02,125.99,25.98026174]
[1742563373843,13.0493185,126.03,125.99,56.46026174]
[1742563374142,13.0493185,126.03,125.99,25.98026174]
[1742563374447,13.0493185,126.03,125.99,12.93094324]
[1742563374835,7.9399,126.01,126.0,0.05498768]
[1742563376446,20.9892185,126.01,126.0,0.05498768]
[1742563376640,51.4692185,126.01,126.0,0.05498768]
[1742563377345,38.4199,126.01,126.0,0.05498768]
[1742563378950,30.48,126.01,126.0,0.05498768]
[1742563379338,38.4196,126.01,126.0,0.05498768]
[1742563382246,38.4196,126.01,126.0,8.768e-05]
[1742563382848,58.84304522,126.01,126.0,8.768e-05]
[1742563383349,7.9438,125.95,125.93,261.84]
[1742563383845,30.48,125.97,125.93,261.84]
[1742563384441,7.9441,125.94,125.91,28.36904522]
[1742563384643,0.05857975,125.96,125.91,28.36904522]
[1742563384842,0.05857975,125.96,125.91,0.04693719]
[1742563386647,7.9444,125.94,125.91,7.99253719]
[1742563387146,7.9437,125.95,125.92,7.9452]
[1742563387851,0.05857975,125.96,125.92,7.9452]
[1742563388645,0.05857975,125.96,125.91,7.99253719]
[1742563389253,7.9445,125.94,125.91,7.99253719]
[1742563390452,7.9445,125.94,125.92,7.9451]
[1742563391055,7.9445,125.94,125.91,7.99263719]
[1742563391554,0.05857975,125.96,125.92,20.42344522]
[1742563391758,0.05857975,125.96,125.92,50.90344522]
[1742563392258,0.05857975,125.96,125.94,7.9437]
[1742563392449,8.00137975,125.96,125.94,7.9437]
[1742563392649,8.00137975,125.96,125.94,7.99063719]
[1742563392855,0.05857975,125.96,125.94,7.99063719]
[1742563393047,0.05857975,125.96,125.95,7.9434]
[1742563394047,38.4206,126.0,125.97,7.9422]
[1742563394247,38.4206,126.0,125.94,20.47038241]
[1742563394248,30.48,126.0,125.94,20.42344522]
[1742563394755,7.9418,125.98,125.92,50.90344522]
[1742563394957,50.90344522,126.0,125.92,50.90344522]
[1742563395254,0.05001398,125.96,125.95,10.0]
[1742563395557,0.05850875,125.97,125.95,10.0]
[1742563396055,8.00110875,125.97,125.95,10.0]
[1742563396355,0.05850875,125.97,125.95,10.0]
[1742563397455,7.9428,125.96,125.95,10.0]
[1742563397655,0.05850875,125.97,125.95,10.0]
[1742563398554,7.9428,125.96,125.95,10.0]
[1742563398754,0.05850875,125.97,125.95,10.0]
[1742563399149,7.9428,125.96,125.95,10.0]
[1742563400251,8.00100875,125.97,125.95,10.0]
[1742563400452,8.00100875,125.97,125.95,17.9433]
[1742563401349,7.9428,125.96,125.95,10.0]
[1742563402359,21.01956378,125.96,125.95,10.0]
[1742563402955,7.9428,125.96,125.95,10.0]
[1742563404863,21.01956378,125.96,125.95,10.0]
[1742563408284,7.9434,125.95,125.94,0.05493084]
[1742563408775,21.02016378,125.95,125.94,0.05493084]
[1742563413581,21.02016378,125.95,125.94,3.084e-05]
[1742563417790,7.9469,125.9,125.87,7.9481]
[1742563417984,7.9469,125.9,125.87,21.02486378]
[1742563418289,30.46,125.92,125.88,13.07676378]
[1742563418488,7.9462,125.91,125.89,13.07676378]
[1742563418885,30.46,125.92,125.89,13.07676378]
[1742563418886,7.9466,125.9,125.89,13.07676378]
[1742563419085,7.9466,125.9,125.89,0.0505861]
[1742563420894,8.00430268,125.91,125.89,0.0505861]
[1742563421294,0.05810268,125.91,125.89,0.0505861]
[1742563421592,8.00450268,125.91,125.89,0.0505861]
[1742563421794,0.05810268,125.91,125.89,0.0505861]
[1742563422492,7.9466,125.9,125.89,0.0505861]
[1742563422885,0.05810268,125.91,125.89,13.12734988]
[1742563423686,8.00430268,125.91,125.89,13.12734988]
[1742563423981,8.00430268,125.91,125.89,21.07424988]
[1742563424288,15.8846,125.97,125.89,13.12734988]
[1742563424491,13.07676378,125.95,125.9,15.14596378]
[1742563424699,43.53676378,125.96,125.91,13.07676378]
[1742563424994,7.9453,125.92,125.9,23.09216378]
[1742563425592,8.00397574,125.92,125.9,23.15294447]
[1742563426484,0.05867574,125.92,125.9,15.20674447]
[1742563427096,0.05867574,125.92,125.91,7.9459]
[1742563427292,0.05867574,125.92,125.91,21.02266378]
[1742563428694,0.05867574,125.92,125.9,23.15324447]
[1742563428881,8.00397574,125.92,125.9,23.15324447]
[1742563430599,8.00397574,125.92,125.9,2.12998069]
[1742563431292,8.00397574,125.92,125.9,15.20674447]
[1742563431492,8.00397574,125.92,125.9,2.12998069]
[1742563431791,8.00397574,125.92,125.9,15.20674447]
[1742563431997,7.9459,125.91,125.9,2.12998069]
[1742563437004,7.9459,125.91,125.9,0.06078069]
[1742563438200,21.02266378,125.91,125.9,0.06078069]
[1742563442608,21.02266378,125.91,125.9,8.069e-05]
[1742563453116,7.9459,125.91,125.9,8.069e-05]
[1742563453308,8.00437574,125.92,125.9,8.069e-05]
[1742563453509,30.49867574,125.92,125.9,8.069e-05]
[1742563454018,7.9459,125.91,125.9,8.069e-05]
[1742563455113,0.05867574,125.92,125.9,8.069e-05]
[1742563455314,30.49867574,125.92,125.9,21.02334447]
[1742563455519,30.49867574,125.92,125.9,8.069e-05]
[1742563455711,43.57543952,125.92,125.9,8.069e-05]
[1742563455912,21.02266378,125.91,125.9,8.069e-05]
[1742563461120,13.07676378,125.91,125.84,2.1912]
[1742563461421,13.07676378,125.88,125.84,10.1415]
[1742563461620,43.51676378,125.88,125.84,10.1415]
[1742563461830,43.51676378,125.88,125.83,13.07676378]
[1742563462011,13.07676378,125.87,125.83,13.07676378]
[1742563462417,13.07676378,125.87,125.84,0.04790809]
[1742563462418,0.05229758,125.86,125.84,0.04790809]
[1742563463213,8.00159758,125.86,125.84,7.99800809]
[1742563463722,8.00159758,125.86,125.84,21.07477187]
[1742563463923,0.05229758,125.86,125.85,7.9497]
[1742563465516,8.00139758,125.86,125.84,21.07467187]
[1742563466224,7.9497,125.85,125.84,0.04790809]
[1742563466625,0.05229758,125.86,125.84,13.12467187]
[1742563466930,0.05229758,125.86,125.85,13.07676378]
[1742563467427,0.05229758,125.86,125.85,21.02646378]
[1742563468127,30.44,125.9,125.88,7.9475]
[1742563468431,30.42,125.91,125.87,13.07676378]
[1742563468628,30.42,125.91,125.88,13.07676378]
[1742563468629,38.3665,125.91,125.88,13.07676378]
[1742563468828,38.3665,125.91,125.88,21.02416378]
[1742563469133,38.3665,125.91,125.88,13.07676378]
[1742563469430,38.41659969,125.91,125.88,21.08027773]
[1742563470025,30.47009969,125.91,125.88,13.13277773]
[1742563470234,0.05009969,125.91,125.88,13.13277773]
[1742563470429,7.9445,125.94,125.91,7.9457]
[1742563470735,30.75089063,125.96,125.92,13.07676378]
[1742563470935,30.75089063,125.96,125.93,13.07676378]
[1742563471536,30.80503886,125.96,125.93,13.13232111]
[1742563471739,30.80503886,125.96,125.94,13.07676378]
[1742563472234,7.9435,125.95,125.94,13.07676378]
[1742563472424,0.38503886,125.96,125.94,13.07676378]
[1742563472630,0.38503886,125.96,125.95,13.07676378]
[1742563473029,0.38503886,125.96,125.95,21.02016378]
[1742563473536,0.31493585,125.98,125.96,7.9428]
[1742563473734,0.31493585,125.98,125.96,21.01956378]
[1742563473934,0.31493585,125.98,125.96,13.07676378]
[1742563474134,8.25663585,125.98,125.96,13.07676378]
[1742563474633,8.31144635,125.98,125.96,13.12722997]
[1742563474941,0.36974635,125.98,125.96,21.06992997]
[1742563475141,0.36974635,125.98,125.96,0.05046619]
[1742563475845,7.9422,125.97,125.96,0.05046619]
[1742563482046,0.36974635,125.98,125.96,13.12722997]
[1742563482445,0.36974635,125.98,125.96,43.52722997]
[1742563482643,0.36974635,125.98,125.96,51.46972997]
[1742563483155,8.31144635,125.98,125.96,51.46972997]
[1742563484052,0.36974635,125.98,125.96,51.46972997]
[1742563484745,0.36974635,125.98,125.97,13.07676378]
[1742563485651,0.36974635,125.98,125.97,21.01896378]
[1742563488049,0.36974635,125.98,125.96,51.46972997]
[1742563488453,0.36974635,125.98,125.96,43.52722997]
[1742563488652,8.31134635,125.98,125.96,43.52722997]
[1742563489156,0.36974635,125.98,125.96,43.52722997]
[1742563489748,8.31174635,125.98,125.96,43.52722997]
[1742563489952,0.36974635,125.98,125.96,0.05046619]
[1742563490346,21.01896378,125.97,125.96,0.05046619]
[1742563491447,7.9422,125.97,125.96,0.05046619]
[1742563492856,0.36974635,125.98,125.96,0.05046619]
[1742563493451,0.36974635,125.98,125.96,7.99296619]
[1742563493957,8.31124635,125.98,125.96,7.99296619]
[1742563494761,0.36974635,125.98,125.97,7.9422]
[1742563496662,0.36974635,125.98,125.96,43.50722997]
[1742563497562,0.36974635,125.98,125.97,7.9422]
[1742563498059,13.44651013,125.98,125.96,0.05046619]
[1742563498263,21.01896378,125.97,125.96,0.05046619]
[1742563498451,7.9422,125.97,125.96,0.05046619]
[1742563500362,13.07676378,125.97,125.91,2.0438]
[1742563500567,13.07676378,125.93,125.89,43.45676378]
[1742563500768,13.07676378,125.92,125.89,30.38]
[1742563500959,13.07676378,125.91,125.88,262.04]
[1742563501156,13.07676378,125.91,125.86,56.89064904]
[1742563501157,13.07676378,125.89,125.86,43.81388526]
[1742563501462,21.02306378,125.91,125.86,56.89064904]
[1742563501664,0.05556501,125.89,125.87,30.38]
[1742563501854,0.05556501,125.89,125.88,21.02446378]
[1742563502266,0.05556501,125.89,125.88,25.29566378]
[1742563503165,0.05556501,125.89,125.88,12.2189]
[1742563504065,50.82882712,125.96,125.91,7.9457]
[1742563504272,30.38,125.96,125.91,30.38]
[1742563504662,51.14376297,125.98,125.91,30.38]
[1742563504862,7.9427,125.97,125.91,30.38]
[1742563505263,0.05543237,125.95,125.93,0.05317338]
[1742563505964,0.05543237,125.95,125.93,7.99747338]
[1742563506272,0.05543237,125.95,125.93,0.05317338]
[1742563508173,7.99913237,125.95,125.93,0.05317338]
[1742563510473,0.05543237,125.95,125.93,7.99777338]
[1742563510772,0.05543237,125.95,125.93,0.05317338]
[1742563510971,0.05543237,125.95,125.94,7.9441]
[1742563511360,0.05543237,125.95,125.94,38.3241]
[1742563511766,0.05543237,125.95,125.94,30.38]
[1742563511976,0.05543237,125.95,125.93,0.05317338]
[1742563512275,7.9441,125.94,125.93,0.05317338]
[1742563514179,0.05543237,125.95,125.93,0.05317338]
[1742563515063,0.05543237,125.95,125.93,7.99757338]
[1742563515969,0.05543237,125.95,125.93,0.05317338]
[1742563516472,7.9441,125.94,125.93,0.05317338]
[1742563517179,7.99913237,125.95,125.93,0.05317338]
[1742563517678,0.05543237,125.95,125.93,0.05317338]
[1742563517978,0.05543237,125.95,125.93,7.99777338]
[1742563518673,0.05543237,125.95,125.94,7.9441]
[1742563518976,0.05543237,125.95,125.93,0.05317338]
[1742563519173,0.05543237,125.95,125.94,7.9441]
[1742563520471,0.31493585,125.98,125.97,7.9422]
[1742563520671,0.31493585,125.98,125.96,30.36]
[1742563521075,0.31493585,125.98,125.96,38.3024]
[1742563521473,0.31493585,125.98,125.96,30.36]
[1742563521680,0.37005167,125.98,125.96,30.41582151]
[1742563522178,0.37005167,125.98,125.97,7.9422]
[1742563523073,0.32312831,125.99,125.98,7.9415]
[1742563523578,0.33481233,126.0,125.97,20.44882712]
[1742563523782,0.33481233,126.0,125.98,2.0332]
[1742563524082,0.33481233,126.0,125.99,30.36]
[1742563524275,0.39264884,126.0,125.97,30.36]
[1742563524581,0.39264884,126.0,125.96,0.05582151]
[1742563525178,7.9419,125.98,125.96,7.99852151]
[1742563525374,0.39264884,126.0,125.96,7.99852151]
[1742563525771,0.39264884,126.0,125.96,0.05582151]
[1742563526084,20.84147596,126.0,125.96,0.05582151]
[1742563526884,7.9421,125.98,125.96,0.05582151]
[1742563527183,20.84147596,126.0,125.96,0.05582151]
[1742563527675,7.9422,125.97,125.96,0.05582151]
[1742563531482,7.942,125.98,125.96,0.05582151]
[1742563531686,30.36,125.99,125.96,0.05582151]
[1742563532185,7.9422,125.97,125.96,0.05582151]
[1742563534295,7.9419,125.98,125.96,0.05582151]
[1742563534490,30.36,125.99,125.96,0.05582151]
[1742563534791,7.9422,125.97,125.96,0.05582151]
[1742563542797,7.9419,125.98,125.96,0.05582151]
[1742563543094,30.34,125.99,125.96,0.05582151]
[1742563543296,7.9422,125.97,125.96,0.05582151]
[1742563547200,2.52754884,126.0,125.96,0.05582151]
[1742563547499,0.39264884,126.0,125.97,7.9418]
[1742563548598,7.941,125.99,125.97,7.9418]
[1742563549302,8.33324884,126.0,125.98,7.9415]
[1742563549598,8.33324884,126.0,125.96,0.05582151]
[1742563549599,0.39264884,126.0,125.96,0.05582151]
[1742563549799,7.941,125.99,125.96,0.05582151]
[1742563550502,7.9416,125.98,125.96,7.99832151]
[1742563550700,30.73264884,126.0,125.96,7.99832151]
[1742563551103,30.73264884,126.0,125.96,0.05582151]
[1742563551808,7.941,125.99,125.96,7.99832151]
[1742563552104,30.73264884,126.0,125.96,0.05582151]
[1742563552498,7.9409,125.99,125.97,7.9418]
[1742563552895,0.39264884,126.0,125.97,7.9418]
[1742563553604,0.39264884,126.0,125.96,7.99832151]
[1742563553805,0.39264884,126.0,125.96,0.05582151]
[1742563554102,8.33314884,126.0,125.96,0.05582151]
[1742563554304,8.33314884,126.0,125.97,7.9418]
[1742563555201,0.39264884,126.0,125.99,7.9409]
[1742563557991,0.39264884,126.0,125.98,7.9412]
[1742563558198,0.39264884,126.0,125.96,4.29552151]
[1742563558491,0.39264884,126.0,125.96,2.22542151]
[1742563558896,8.33334884,126.0,125.97,7.9419]
[1742563559092,0.39264884,126.0,125.96,2.22542151]
[1742563559293,7.9422,125.97,125.96,0.05582151]
[1742563559709,38.2622,125.97,125.96,0.05582151]
[1742563560305,38.2622,125.97,125.96,2.151e-05]
[1742563564513,30.32,125.97,125.96,2.151e-05]
[1742563564712,30.32,125.99,125.96,2.151e-05]
[1742563564900,30.32,125.99,125.96,7.94242151]
[1742563565099,30.32,125.99,125.96,2.151e-05]
[1742563565299,0.39264884,126.0,125.97,7.9416]
[1742563565713,8.33324884,126.0,125.97,7.9416]
[1742563565899,8.33324884,126.0,125.98,7.9415]
[1742563566103,8.33324884,126.0,125.96,2.151e-05]
[1742563566303,7.941,125.99,125.96,2.151e-05]
[1742563566712,0.39264884,126.0,125.96,2.151e-05]
[1742563566713,0.39264884,126.0,125.97,7.9419]
[1742563567102,8.33344884,126.0,125.97,7.9419]
[1742563567599,0.39264884,126.0,125.97,7.9419]
[1742563568512,7.9412,125.99,125.97,7.9419]
[1742563569213,7.9416,125.98,125.96,7.94242151]
[1742563569406,20.84147596,126.0,125.96,2.151e-05]
[1742563569809,7.9418,125.98,125.96,2.151e-05]
[1742563570517,7.9422,125.97,125.96,2.151e-05]
[1742563571318,7.9419,125.98,125.96,2.151e-05]
[1742563571516,20.84147596,126.0,125.96,2.151e-05]
[1742563572516,7.9422,125.97,125.96,2.151e-05]
[1742563575322,38.2619,125.98,125.96,2.151e-05]
[1742563575620,30.32,125.98,125.96,2.151e-05]
[1742563576417,7.9422,125.97,125.96,2.151e-05]
[1742563581115,20.44882712,125.95,125.87,45.93378526]
[1742563581309,30.32,125.94,125.89,7.9469]
[1742563581713,30.32,125.94,125.91,7.9457]
[1742563581914,30.32,125.94,125.88,20.44882712]
[1742563582215,30.37574881,125.94,125.91,0.05726693]
[1742563582911,30.37574881,125.94,125.92,7.945]
[1742563583220,0.05574881,125.94,125.92,7.945]
[1742563583411,7.99984881,125.94,125.92,7.945]
[1742563584217,0.05574881,125.94,125.92,7.945]
[1742563586125,7.99984881,125.94,125.92,7.945]
[1742563586715,0.05574881,125.94,125.92,7.945]
[1742563587723,0.05574881,125.94,125.92,13.08092158]
[1742563587919,0.05574881,125.94,125.93,13.08092158]
[1742563588314,0.05574881,125.94,125.93,21.02562158]
[1742563590015,0.05574881,125.94,125.93,51.34562158]
[1742563594222,0.05574881,125.94,125.93,43.40092158]
[1742563594427,0.05574881,125.94,125.91,292.45726693]
[1742563595129,0.05574881,125.94,125.91,305.53818851]
[1742563595428,0.05574881,125.94,125.91,275.21818851]
[1742563595625,0.05574881,125.94,125.93,7.9447]
[1742563596522,0.05574881,125.94,125.92,7.9449]
[1742563596726,0.05574881,125.94,125.91,305.53818851]
[1742563596926,0.05574881,125.94,125.91,292.45726693]
[1742563597130,8.00004881,125.94,125.92,7.9452]
[1742563597320,0.05574881,125.94,125.91,305.53818851]
[1742563597721,0.05574881,125.94,125.92,21.02562158]
[1742563598325,0.05574881,125.94,125.93,7.9447]
[1742563599432,8.00004881,125.94,125.92,7.9451]
[1742563599818,0.05574881,125.94,125.91,292.45726693]
[1742563600022,0.05574881,125.94,125.91,300.40286693]
[1742563600224,0.05574881,125.94,125.91,292.45726693]
[1742563600422,0.05574881,125.94,125.91,305.53818851]
[1742563600629,8.00024881,125.94,125.92,7.945]
[1742563601026,8.00024881,125.94,125.91,305.53818851]
[1742563601831,7.9448,125.93,125.91,300.40286693]
[1742563604032,7.9453,125.92,125.91,262.13726693]
[1742563604233,7.9453,125.92,125.91,0.05726693]
[1742563605930,21.02622158,125.92,125.91,0.05726693]
[1742563608642,7.9481,125.88,125.86,283.12962158]
[1742563608931,13.08092158,125.92,125.86,283.12962158]
[1742563608932,7.9475,125.89,125.86,283.12962158]
[1742563609438,7.9475,125.89,125.86,270.0487]
[1742563609631,8.00348047,125.89,125.86,283.18085525]
[1742563610230,8.00348047,125.89,125.87,7.9484]
[1742563612039,7.9478,125.88,125.86,7.99993367]
[1742563612541,8.00348047,125.89,125.86,7.99993367]
[1742563612731,8.00348047,125.89,125.87,7.9485]
[1742563614645,8.00348047,125.89,125.86,21.08095525]
[1742563615337,8.00348047,125.89,125.86,13.13215525]
[1742563615651,7.9478,125.88,125.86,13.13215525]
[1742563616044,7.9478,125.88,125.86,21.08095525]
[1742563616238,8.00358047,125.89,125.86,21.08095525]
[1742563617741,7.9479,125.88,125.86,8.00003367]
[1742563618547,7.9485,125.87,125.86,0.05123367]
[1742563618936,13.13690205,125.89,125.86,0.05123367]
[1742563619142,7.9484,125.88,125.86,0.05123367]
[1742563619341,13.13690205,125.89,125.86,0.05123367]
[1742563620542,7.9485,125.87,125.86,0.05123367]
[1742563620746,38.2685,125.87,125.86,0.05123367]
[1742563621351,30.32,125.87,125.86,8.00033367]
[1742563621952,7.9482,125.88,125.86,8.00033367]
[1742563622147,38.2682,125.88,125.86,8.00033367]
[1742563622857,38.2682,125.88,125.86,0.05123367]
[1742563623351,38.2682,125.88,125.86,8.00023367]
[1742563623953,38.2482,125.88,125.86,8.00023367]
[1742563624154,7.9482,125.88,125.86,8.00023367]
[1742563624350,38.2482,125.88,125.86,8.00023367]
[1742563624650,38.2682,125.88,125.86,8.00023367]
[1742563625053,30.32,125.88,125.86,8.00023367]
[1742563627155,30.32,125.88,125.87,7.9485]
[1742563628059,8.00358047,125.89,125.87,7.9485]
[1742563628352,38.30358047,125.89,125.87,7.9485]
[1742563629557,38.30358047,125.89,125.86,7.99993367]
[1742563630260,38.30358047,125.89,125.87,7.9484]
[1742563631360,38.30358047,125.89,125.86,8.00003367]
[1742563632160,38.30358047,125.89,125.87,7.9485]
[1742563633165,30.35598047,125.89,125.88,7.9478]
[1742563633362,6.3246,125.95,125.88,13.08092158]
[1742563633562,2.0956,125.95,125.91,13.08092158]
[1742563633868,7.9436,125.95,125.92,21.02572158]
[1742563634065,43.38092158,125.96,125.92,21.02572158]
[1742563634363,43.38092158,125.96,125.91,13.08092158]
[1742563634565,7.9444,125.94,125.93,0.05238488]
[1742563635766,21.08438373,125.95,125.93,0.05238488]
[1742563636068,8.00346215,125.95,125.93,7.99698488]
[1742563636268,7.9441,125.94,125.93,0.05238488]
[1742563636968,21.02502158,125.94,125.93,0.05238488]
[1742563638071,7.9441,125.94,125.93,0.05238488]
[1742563639271,21.02502158,125.94,125.93,8.488e-05]
[1742563644978,7.9441,125.94,125.93,8.488e-05]
[1742563645279,8.00366215,125.95,125.93,8.488e-05]
[1742563645778,7.9441,125.94,125.93,8.488e-05]
[1742563651280,0.05986215,125.95,125.93,8.488e-05]
[1742563651482,0.05986215,125.95,125.93,13.08100646]
[1742563651775,0.05986215,125.95,125.94,21.02502158]
[1742563659979,0.05986215,125.95,125.93,38.22448488]
[1742563660186,0.05986215,125.95,125.93,8.488e-05]
[1742563660391,21.02502158,125.94,125.93,8.488e-05]
[1742563660695,13.14078373,125.95,125.93,8.488e-05]
[1742563660885,21.08468373,125.95,125.93,8.488e-05]
[1742563661083,13.14078373,125.95,125.93,8.488e-05]
[1742563662290,7.9441,125.94,125.93,8.488e-05]
[1742563662486,0.05986215,125.95,125.93,8.488e-05]
[1742563662687,0.05986215,125.95,125.93,43.34100646]
[1742563663591,0.05986215,125.95,125.94,21.02502158]
[1742563665187,43.67573391,126.0,125.97,7.9419]
[1742563665389,43.67573391,126.0,125.93,30.26008488]
[1742563665390,43.67573391,126.0,125.96,13.08092158]
[1742563665694,7.9415,125.99,125.96,30.26]
[1742563665889,7.9415,125.99,125.96,38.2025]
[1742563666194,7.9415,125.99,125.96,30.26]
[1742563666396,7.99543641,125.99,125.96,30.32106747]
[1742563666700,0.05393641,125.99,125.97,13.08092158]
[1742563666892,0.05393641,125.99,125.96,43.40198905]
[1742563667497,7.99513641,125.99,125.97,7.9418]
[1742563667797,7.99513641,125.99,125.96,43.40198905]
[1742563667996,7.99513641,125.99,125.96,51.34438905]
[1742563668588,0.05393641,125.99,125.97,7.9421]
[1742563668791,0.05393641,125.99,125.97,21.02302158]
[1742563669289,0.05393641,125.99,125.98,7.9415]
[1742563669497,0.05393641,125.99,125.98,21.02242158]
[1742563669796,0.05393641,125.99,125.98,7.9415]
[1742563669996,0.05393641,125.99,125.97,21.02272158]
[1742563670196,0.05393641,125.99,125.96,30.32106747]
[1742563670987,7.99513641,125.99,125.97,7.9421]
[1742563671186,0.05393641,125.99,125.97,7.9421]
[1742563671393,0.05393641,125.99,125.97,21.02302158]
[1742563671794,0.05393641,125.99,125.96,43.40198905]
[1742563672401,7.99533641,125.99,125.97,7.9421]
[1742563672901,7.99533641,125.99,125.96,43.40198905]
[1742563673092,7.9416,125.98,125.96,30.32106747]